fUSD/lending_fUSD_20260224
["ID","MTS","AMOUNT","RATE_DAILY","PERIOD"]
[406517588,1771900243971,-500.0,0.00013698,2]
[406517589,1771900243981,-500.0,0.00013698,2]
[406517590,1771900243990,-500.0,0.00013698,2]
[406517591,1771900243999,-500.0,0.00013698,2]
[406517592,1771900244009,-500.0,0.00013698,2]
[406517593,1771900244018,-500.0,0.00013698,2]
[406517594,1771900244027,-500.0,0.00013698,2]
[406517595,1771900244036,-500.0,0.00013698,2]
[406517596,1771900244045,-500.0,0.00013698,2]
[406517597,1771900244055,-500.0,0.00013698,2]
[406517598,1771900244063,-500.0,0.00013698,2]
[406517599,1771900244073,-500.0,0.00013698,2]
[406517600,1771900244082,-500.0,0.00013698,2]
[406517601,1771900244091,-500.0,0.00013698,2]
[406517602,1771900244100,-500.0,0.00013698,2]
[406517603,1771900244109,-500.0,0.00013698,2]
[406517604,1771900244117,-500.0,0.00013698,2]
[406517605,1771900244126,-500.0,0.00013698,2]
[406517606,1771900244135,-500.0,0.00013698,2]
[406517607,1771900244144,-500.0,0.00013698,2]
[406517608,1771900244153,-500.0,0.00013698,2]
[406517609,1771900244162,-500.0,0.00013698,2]
[406517610,1771900244171,-500.0,0.00013698,2]
[406517611,1771900244180,-500.0,0.00013698,2]
[406517612,1771900244189,-500.0,0.00013698,2]
[406517613,1771900244198,-500.0,0.00013698,2]
[406517614,1771900244206,-500.0,0.00013698,2]
[406517615,1771900244217,-500.0,0.00013698,2]
[406517617,1771900244226,-500.0,0.00013698,2]
[406517618,1771900244235,-500.0,0.00013698,2]
[406517619,1771900244243,-500.0,0.00013698,2]
[406517620,1771900244252,-500.0,0.00013698,2]
[406517621,1771900244261,-502.43319392,0.00013698,2]
[406517622,1771900244270,-500.0,0.00013698,2]
[406517623,1771900244278,-500.0,0.00013698,2]
[406517624,1771900244287,-500.0,0.00013698,2]
[406517625,1771900244296,-500.0,0.00013698,2]
[406517626,1771900244305,-500.0,0.00013698,2]
[406517627,1771900244314,-502.16359539,0.00013698,2]
[406517628,1771900244323,-423.52398404,0.00013698,2]
[406517629,1771900244332,-520.46959258,0.00013698,2]
[406517630,1771900244341,-400.68537887,0.00013698,2]
[406517631,1771900244351,-500.0,0.00013698,2]
[406517632,1771900244360,-500.0,0.00013698,2]
[406517633,1771900244369,-500.0,0.00013698,2]
[406517634,1771900244378,-500.0,0.00013698,2]
[406517635,1771900244387,-500.0,0.00013698,2]
[406517636,1771900244396,-500.0,0.00013698,2]
[406517637,1771900244405,-500.0,0.00013698,2]
[406517638,1771900244414,-500.0,0.00013698,2]
[406517639,1771900244423,-500.0,0.00013698,2]
[406517640,1771900244432,-500.0,0.00013698,2]
[406517641,1771900244442,-500.0,0.00013698,2]
[406517642,1771900244451,-500.0,0.00013698,2]
[406517643,1771900244460,-500.0,0.00013698,2]
[406517644,1771900244471,-500.0,0.00013698,2]
[406517645,1771900244480,-500.0,0.00013698,2]
[406517646,1771900244489,-500.0,0.00013698,2]
[406517647,1771900244498,-500.0,0.00013698,2]
[406517648,1771900244507,-500.0,0.00013698,2]
[406517649,1771900244516,-500.0,0.00013698,2]
[406517650,1771900244525,-500.0,0.00013698,2]
[406517651,1771900244538,-500.0,0.00013698,2]
[406517652,1771900244548,-500.0,0.00013698,2]
[406517653,1771900244557,-500.0,0.00013698,2]
[406517654,1771900244567,-500.0,0.00013698,2]
[406517655,1771900244577,-500.0,0.00013698,2]
[406517656,1771900244587,-500.0,0.00013698,2]
[406517657,1771900244596,-500.0,0.00013698,2]
[406517658,1771900244606,-500.0,0.00013698,2]
[406517659,1771900244615,-247.89543744,0.00013698,2]
[406517660,1771900244624,-500.0,0.00013698,2]
[406517661,1771900244634,-500.0,0.00013698,2]
[406517662,1771900244643,-500.0,0.00013698,2]
[406517663,1771900244652,-500.0,0.00013698,2]
[406517664,1771900244661,-565.59384868,0.00013698,2]
[406517665,1771900244671,-500.0,0.00013698,2]
[406517666,1771900244680,-500.0,0.00013698,2]
[406517667,1771900244690,-500.0,0.00013698,2]
[406517668,1771900244699,-500.0,0.00013698,2]
[406517669,1771900244708,-500.0,0.00013698,2]
[406517670,1771900244719,-500.0,0.00013698,2]
[406517671,1771900244729,-500.0,0.00013698,2]
[406517672,1771900244739,-500.0,0.00013698,2]
[406517673,1771900244748,-500.0,0.00013698,2]
[406517674,1771900244758,-500.0,0.00013698,2]
[406517675,1771900244767,-500.0,0.00013698,2]
[406517676,1771900244777,-500.0,0.00013698,2]
[406517677,1771900244786,-500.0,0.00013698,2]
[406517678,1771900244795,-500.0,0.00013698,2]
[406517679,1771900244804,-509.83693546,0.00013698,2]
[406517680,1771900244813,-500.0,0.00013698,2]
[406517681,1771900244822,-500.0,0.00013698,2]
[406517682,1771900244832,-500.0,0.00013698,2]
[406517683,1771900244841,-500.0,0.00013698,2]
[406517684,1771900244850,-500.0,0.00013698,2]
[406517685,1771900244860,-500.0,0.00013698,2]
[406517686,1771900244869,-496.78099408,0.00013698,2]
[406517687,1771900244881,-500.0,0.00013698,2]
[406517688,1771900244891,-500.0,0.00013698,2]
[406517689,1771900244900,-500.0,0.00013698,2]
[406517690,1771900244909,-500.0,0.00013698,2]
[406517691,1771900244918,-500.0,0.00013698,2]
[406517692,1771900244928,-500.0,0.00013698,2]
[406517693,1771900244937,-500.0,0.00013698,2]
[406517694,1771900244946,-500.0,0.00013698,2]
[406517695,1771900244956,-500.0,0.00013698,2]
[406517696,1771900244965,-500.0,0.00013698,2]
[406517697,1771900244975,-500.0,0.00013698,2]
[406517698,1771900244984,-500.0,0.00013698,2]
[406517699,1771900244993,-500.0,0.00013698,2]
[406517700,1771900245002,-500.0,0.00013698,2]
[406517701,1771900245011,-489.83955293,0.00013698,2]
[406517702,1771900245020,-500.0,0.00013698,2]
[406517703,1771900245030,-500.0,0.00013698,2]
[406517704,1771900245039,-500.0,0.00013698,2]
[406517705,1771900245048,-500.0,0.00013698,2]
[406517706,1771900245057,-500.0,0.00013698,2]
[406517707,1771900245066,-500.0,0.00013698,2]
[406517708,1771900245075,-157.56344953,0.00013698,2]
[406517709,1771900245084,-500.0,0.00013698,2]
[406517710,1771900245093,-500.0,0.00013698,2]
[406517711,1771900245102,-500.0,0.00013698,2]
[406517712,1771900245111,-500.0,0.00013698,2]
[406517713,1771900245120,-500.0,0.00013698,2]
[406517714,1771900245129,-500.0,0.00013698,2]
[406517715,1771900245138,-500.0,0.00013698,2]
[406517716,1771900245147,-500.0,0.00013698,2]
[406517717,1771900245156,-500.0,0.00013698,2]
[406517718,1771900245165,-500.0,0.00013698,2]
[406517719,1771900245174,-500.0,0.00013698,2]
[406517720,1771900245183,-500.0,0.00013698,2]
[406517721,1771900245192,-500.0,0.00013698,2]
[406517722,1771900245202,-500.0,0.00013698,2]
[406517723,1771900245211,-518.01041057,0.00013698,2]
[406517724,1771900245220,-388.61363523,0.00013698,2]
[406517725,1771900245229,-16296.14,0.00013699,2]
[406517726,1771900245238,-200.0,0.00013699,2]
[406517727,1771900245247,-150.0,0.000137,2]
[406517728,1771900245256,-150.0,0.000137,2]
[406517729,1771900245265,-150.0,0.000137,2]
[406517730,1771900245275,-215.42973367,0.000137,2]
[406517731,1771900245285,-150.65321488,0.0001373,5]
[406517732,1771900245295,-166.66,0.00013822,2]
[406517733,1771900245303,-250.0,0.00013899,2]
[406517734,1771900245313,-5000.0,0.000139,2]
[406517735,1771900245322,-5000.0,0.000139,5]
[406517736,1771900245331,-22082.28453032,0.00013925,2]
[406517737,1771900245341,-433.0,0.00014078,2]
[406517738,1771900245352,-353.3,0.00014116,2]
[406517739,1771900245362,-865.56847714,0.00014228,2]
[406517740,1771900245371,-1845.2,0.00014258,2]
[406517741,1771900245381,-8972.9906402,0.0001427,2]
[406517742,1771900245390,-2351.0,0.00014288,2]
[406517743,1771900245399,-523.65052669,0.00014298,2]
[406517744,1771900245408,-200.0,0.00014312,2]
[406517745,1771900245417,-19118.3707301,0.00014328,2]
[406517746,1771900245426,-10357.55636516,0.0001439,2]
[406517747,1771900245435,-1600.0,0.00014398,2]
[406517748,1771900245447,-22082.28453032,0.00014493,2]
[406517749,1771900245456,-482.63129399,0.00014504,2]
[406517750,1771900245465,-1000.0,0.00014569,2]
[406517751,1771900245474,-151.0,0.00014634,2]
[406517752,1771900245483,-151.0,0.00014634,2]
[406517753,1771900245493,-151.0,0.00014634,2]
[406517754,1771900245502,-151.0,0.00014634,2]
[406517755,1771900245511,-151.0,0.00014634,2]
[406517756,1771900245520,-353.3,0.0001473,2]
[406517757,1771900245530,-2002.1448385,0.00014819,2]
[406517758,1771900245539,-482.63129399,0.00014867,2]
[406517759,1771900245548,-4265.8851227,0.00014896,2]
[406517760,1771900245558,-176.18400318,0.000149,2]
[406517761,1771900245567,-10000.0,0.000149,5]
[406517762,1771900245577,-514.749861,0.00014999,2]
[406517763,1771900245587,-846.86,0.00014999,2]
[406517764,1771900245596,-250.0,0.00015,2]
[406517765,1771900245606,-2057.23131483,0.00015,2]
[406517766,1771900245615,-18027.12324089,0.00015,7]
[406517767,1771900245624,-8008.97204016,0.00015,2]
[406517768,1771900245633,-22082.28453032,0.00015061,2]
[406517769,1771900245643,-155.0,0.00015067,2]
[406517770,1771900245652,-900.0,0.00015068,2]
[406517771,1771900245661,-846.86,0.00015119,2]
[406517772,1771900245671,-515.0,0.0001512,2]
[406517773,1771900245680,-240439.56128328,0.0001512,2]
[406517774,1771900245690,-157.0,0.00015182,3]
[406517775,1771900245699,-22975.20947795,0.00015203,2]
[406517776,1771900245708,-482.63129399,0.00015229,2]
[406517777,1771900245720,-1517.64,0.000153,2]
[406517778,1771900245731,-353.3,0.00015344,2]
[406517779,1771900245742,-736.0,0.00015367,2]
[406517780,1771900245751,-510.0565306,0.000154,2]
[406517781,1771900245762,-288.22,0.0001544,2]
[406517782,1771900245771,-482.63129399,0.00015592,2]
[406517783,1771900245781,-22082.28453032,0.00015628,2]
[406517784,1771900245792,-246.0,0.00015676,2]
[406517785,1771900245802,-3292.0,0.00015716,2]
[406517786,1771900245812,-195.04402718,0.00015797,2]
[406517787,1771900245822,-2247.75609779,0.00015807,2]
[406517788,1771900245831,-1600.0,0.00015837,2]
[406517789,1771900245841,-22975.20947795,0.00015877,2]
[406517790,1771900245850,-163.0,0.000159,2]
[406517791,1771900245860,-246.0,0.00015933,2]
[406517792,1771900245869,-482.63129399,0.00015954,2]
[406517793,1771900245881,-353.3,0.00015958,2]
[406517794,1771900245891,-150.0,0.00016,2]
[406517795,1771900245901,-150.0,0.00016,2]
[406517796,1771900245911,-152.37105579,0.00016,2]
[406517797,1771900245919,-150.0,0.00016,2]
[406517798,1771900245930,-2052.65405771,0.00016,2]
[406517799,1771900245939,-419.22118993,0.00016,2]
[406517800,1771900245948,-150.0,0.00016,2]
[406517801,1771900245958,-1000.0,0.00016026,2]
[406517802,1771900245973,-168.0,0.00016101,2]
[406517803,1771900245982,-4417.44,0.00016103,2]
[406517804,1771900245991,-22082.28453032,0.00016196,2]
[406517805,1771900246000,-5112.49154717,0.000162,5]
[406517806,1771900246009,-168.0,0.00016228,2]
[406517808,1771900246019,-482.63129399,0.00016317,2]
[406517810,1771900246027,-252.0,0.00016319,2]
[406517812,1771900246037,-252.0,0.00016325,2]
[406517813,1771900246046,-200.0,0.0001634,2]
[406517814,1771900246055,-252.0,0.00016356,2]
[406517815,1771900246068,-173.87087054,0.00016356,2]
[406517816,1771900246077,-160.0,0.00016356,2]
[406517817,1771900246087,-252.0,0.0001636,2]
[406517818,1771900246096,-168.0,0.00016378,2]
[406517819,1771900246105,-155.0,0.00016436,2]
[406517820,1771900246114,-500.0,0.00016438,2]
[406517821,1771900246124,-500.0,0.00016438,2]
[406517822,1771900246133,-500.0,0.00016438,2]
[406517823,1771900246142,-20000.0,0.00016438,2]
[406517824,1771900246152,-900.0,0.00016438,2]
[406517825,1771900246161,-252.0,0.00016457,2]
[406517826,1771900246227,-252.0,0.00016475,2]
[406517827,1771900246237,-252.0,0.00016481,2]
[406517828,1771900246247,-252.0,0.00016493,2]
[406517829,1771900246255,-22975.20947795,0.00016551,2]
[406517830,1771900246264,-353.3,0.00016571,2]
[406517831,1771900246273,-361.85708907,0.000166,2]
[406517832,1771900246282,-252.0,0.00016606,2]
[406517833,1771900246291,-482.63129399,0.0001668,2]
[406517834,1771900246300,-167.31,0.00016712,2]
[406517835,1771900246309,-1252.0,0.00016763,2]
[406517836,1771900246318,-22082.28453032,0.00016764,2]
[406517837,1771900246327,-252.0,0.00016793,2]
[406517838,1771900246336,-252.0,0.00016843,2]
[406517839,1771900246345,-15000.0,0.000169,6]
[406517840,1771900246357,-164.0,0.000169,2]
[406517841,1771900246366,-346.68,0.0001693,14]
[406517842,1771900246375,-288.22,0.0001698,2]
[406517843,1771900246384,-252.0,0.00016985,2]
[406517844,1771900246393,-846.86,0.00016999,2]
[406517845,1771900246402,-846.86,0.00016999,2]
[406517846,1771900246411,-846.86,0.00016999,2]
[406517847,1771900246420,-846.86,0.00016999,2]
[406517848,1771900246429,-846.86,0.00016999,2]
[406517849,1771900246437,-847.09732287,0.00016999,2]
[406517850,1771900246446,-500.0,0.00016999,2]
[406517851,1771900246455,-500.0,0.00016999,2]
[406517852,1771900246465,-188.98088776,0.00016999,2]
[406517853,1771900246474,-500.0,0.00016999,2]
[406517854,1771900246483,-500.0,0.00016999,2]
[406517855,1771900246492,-500.0,0.00016999,2]
[406517856,1771900246502,-155.12855329,0.00016999,2]
[406517857,1771900246510,-500.0,0.00016999,2]
[406517858,1771900246519,-500.0,0.00016999,2]
[406517859,1771900246528,-500.0,0.00016999,2]
[406517860,1771900246537,-594.51155404,0.00016999,2]
[406517861,1771900246547,-300.0,0.00017,2]
[406517862,1771900246555,-667450.75945274,0.00017,2]
[406517863,1771900246564,-151.89875951,0.00017,2]
[406517864,1771900246574,-206.243638,0.00017004,7]
[406517865,1771900246583,-482.63129399,0.00017042,2]
[406517866,1771900246592,-252.0,0.00017148,2]
[406517867,1771900246602,-2725.04997657,0.00017154,2]
[406517868,1771900246612,-350.0,0.00017162,2]
[406517869,1771900246622,-350.0,0.00017205,2]
[406517870,1771900246631,-22975.20947795,0.00017226,2]
[406517871,1771900246641,-1600.0,0.00017277,2]
[406517872,1771900246650,-4609.0,0.00017288,2]
[406517873,1771900246661,-35504.0,0.000173,2]
[406517874,1771900246670,-454.1749961,0.00017308,2]
[406517875,1771900246679,-350.0,0.00017316,2]
[406517876,1771900246689,-22082.28453032,0.00017332,2]
[406517877,1771900246698,-252.0,0.00017335,2]
[406517878,1771900246708,-157.0,0.00017364,3]
[406517879,1771900246719,-1500.0,0.00017384,2]
[406517880,1771900246728,-1500.0,0.00017384,2]
[406517881,1771900246738,-2610.847589,0.00017384,2]
[406517882,1771900246748,-252.0,0.00017392,2]
[406517883,1771900246757,-482.63129399,0.00017405,2]
[406517884,1771900246766,-252.0,0.00017428,2]
[406517885,1771900246775,-454.1749961,0.0001748,2]
[406517886,1771900246784,-1000.0,0.00017483,2]
[406517887,1771900246794,-20000.0,0.000175,6]
[406517888,1771900246803,-252.0,0.00017572,2]
[406517889,1771900246812,-25000.0,0.000176,6]
[406517890,1771900246823,-454.1749961,0.00017651,2]
[406517891,1771900246833,-785.08531332,0.000177,2]
[406517892,1771900246842,-403.0,0.000177,5]
[406517893,1771900246851,-5000.0,0.000177,6]
[406517894,1771900246860,-515.0,0.00017715,4]
[406517895,1771900246870,-350.0,0.00017721,2]
[406517896,1771900246879,-252.0,0.00017734,2]
[406517897,1771900246888,-482.63129399,0.00017767,2]
[406517898,1771900246898,-5000.0,0.000178,6]
[406517899,1771900246908,-800.0,0.00017808,2]
[406517900,1771900246917,-252.0,0.0001782,2]
[406517901,1771900246926,-1005.12410844,0.0001786,2]
[406517902,1771900246936,-25000.0,0.000179,3]
[406517903,1771900246945,-22975.20947795,0.000179,2]
[406517904,1771900246955,-551.09710844,0.000179,2]
[406517905,1771900246964,-22082.28453032,0.000179,2]
[406517906,1771900246973,-10603.39349942,0.000179,2]
[406517907,1771900246982,-5000.0,0.000179,6]
[406517908,1771900246991,-820.98997527,0.000179,3]
[406517909,1771900247001,-448.57372186,0.000179,2]
[406517910,1771900247010,-3611.95612194,0.000179,2]
[406517911,1771900247019,-572.17887083,0.00017973,2]
[406517912,1771900247029,-500.0,0.00017973,2]
[406517913,1771900247038,-165.36252658,0.00017973,2]
[406517914,1771900247046,-166.97672521,0.00017973,2]
[406517915,1771900247055,-500.0,0.00017973,2]
[406517916,1771900247064,-500.0,0.00017973,2]
[406517917,1771900247073,-500.0,0.00017973,2]
[406517918,1771900247082,-500.0,0.00017973,2]
[406517919,1771900247092,-500.0,0.00017973,2]
[406517920,1771900247101,-500.20520478,0.00017973,2]
[406517921,1771900247110,-500.0,0.00017973,2]
[406517922,1771900247120,-500.34213263,0.00017973,2]
[406517923,1771900247129,-500.0,0.00017973,2]
[406517924,1771900247139,-500.0,0.00017973,2]
[406517925,1771900247148,-500.0,0.00017973,2]
[406517926,1771900247157,-500.0,0.00017973,2]
[406517927,1771900247166,-500.0,0.00017973,2]
[406517928,1771900247175,-239.96280814,0.00017973,2]
[406517929,1771900247185,-500.0,0.00017973,2]
[406517930,1771900247195,-502.31192663,0.00017973,2]
[406517931,1771900247205,-500.0,0.00017973,2]
[406517932,1771900247216,-500.34349631,0.00017973,2]
[406517933,1771900247225,-500.0,0.00017973,2]
[406517934,1771900247235,-502.15928887,0.00017973,2]
[406517935,1771900247244,-500.20340125,0.00017973,2]
[406517936,1771900247253,-504.35563358,0.00017973,2]
[406517937,1771900247264,-500.64938591,0.00017973,2]
[406517938,1771900247273,-500.78031298,0.00017973,2]
[406517939,1771900247282,-500.0,0.00017973,2]
[406517940,1771900247290,-500.45758158,0.00017973,2]
[406517941,1771900247299,-384.53358442,0.00017973,2]
[406517942,1771900247308,-195.04402718,0.0001799,2]
[406517943,1771900247318,-309.11765045,0.00017999,2]
[406517944,1771900247327,-672.17079537,0.00017999,2]
[406517945,1771900247335,-809.41322249,0.00017999,2]
[406517946,1771900247345,-2937042.93012517,0.00018,2]
[406517947,1771900247554,-3021.1571712,0.00018,2]
[406517948,1771900247712,-205.84830294,0.00018,2]
[406517949,1771900247723,-931.70647987,0.00018,2]
[406517950,1771900247734,-395.472,0.00018,2]
[406517951,1771900247746,-857.81402166,0.00018,2]
[406517952,1771900247778,-1735.29647551,0.00013519,2]
[406517953,1771900247787,-7714.21506324,0.00018,2]
[406517954,1771900247797,-27347.32579876,0.00018,2]
[406517955,1771900247815,-261.79992815,0.00018,2]
[406517956,1771900247825,-444.58999998,0.00018,2]
[406517957,1771900247837,-9502.0,0.00018,2]
[406517958,1771900336576,512.76060754,0.000108,2]
[406517959,1771900337982,500.0,0.000108,2]
[406517960,1771900338448,500.0,0.000108,2]
[406517961,1771900338920,500.0,0.000108,2]
[406517962,1771900339405,900.0,0.000108,2]
[406517963,1771900341559,859.99109656,0.000108,2]
[406517964,1771900344131,500.0,0.000108,2]
[406517965,1771900344649,500.0,0.000108,2]
[406517966,1771900345157,500.0,0.000108,2]
[406517967,1771900345430,3333.57109243,0.0001174,2]
[406517968,1771900345451,10000.01,0.0001174,2]
[406517969,1771900345474,1304.72190757,0.0001174,2]
[406517970,1771900345638,500.0,0.000108,2]
[406517971,1771900346103,927.2782959,0.000108,2]
[406517972,1771900348710,500.0,0.000108,2]
[406517973,1771900348742,500.0,0.000108,2]
[406517974,1771900349224,500.0,0.000108,2]
[406517975,1771900349860,711.01123373,0.000108,2]
[406517976,1771900367412,-9186.563225,0.00011833,2]
[406517977,1771900370303,-10000.01,0.00011833,2]
[406517978,1771900373341,-10000.01,0.00011833,2]
[406517979,1771900385551,157.0,0.00013,3]
[406517980,1771900388061,500.0,0.00011709,2]
[406518036,1771900440246,1453.23,0.00012,10]
[406518048,1771900450830,157.0,0.00013,3]
[406518050,1771900506441,157.0,0.00013,3]
[406518059,1771900566360,157.0,0.00013,3]
[406518060,1771900600143,1500.0,0.000126,4]
[406518061,1771900602256,3000.0,0.000127,4]
[406518062,1771900604342,4500.0,0.000128,4]
[406518063,1771900606237,212.0,0.00011713,2]
[406518064,1771900606428,6000.0,0.000129,4]
[406518065,1771900626660,157.0,0.00013,3]
[406518066,1771900637010,503.00974341,0.000108,2]
[406518067,1771900637557,500.0,0.000108,2]
[406518068,1771900637648,500.0,0.000108,2]
[406518069,1771900638047,500.0,0.000108,2]
[406518070,1771900638082,500.0,0.000108,2]
[406518071,1771900638123,500.0,0.000108,2]
[406518072,1771900638586,500.0,0.000108,2]
[406518073,1771900638615,500.0,0.000108,2]
[406518074,1771900639075,500.0,0.000108,2]
[406518075,1771900639104,500.0,0.000108,2]
[406518076,1771900639562,500.0,0.000108,2]
[406518077,1771900640039,616.86189331,0.000108,2]
[406518078,1771900642903,500.0,0.000108,2]
[406518079,1771900643379,799.99,0.000108,2]
[406518080,1771900645872,500.0,0.000108,2]
[406518081,1771900646164,550.36054499,0.000108,2]
[406518082,1771900646387,713.78219389,0.000108,2]
[406518083,1771900646862,500.0,0.000108,2]
[406518084,1771900647350,500.0,0.000108,2]
[406518085,1771900647863,524.23267642,0.000108,2]
[406518086,1771900649465,500.0,0.000108,2]
[406518087,1771900649924,507.37309265,0.000108,2]
[406518088,1771900652860,507.61476669,0.000108,2]
[406518089,1771900657852,600.0,0.000108,2]
[406518090,1771900658334,600.0,0.000108,2]
[406518091,1771900658801,600.0,0.000108,2]
[406518092,1771900659335,600.0,0.000108,2]
[406518093,1771900659860,600.0,0.000108,2]
[406518094,1771900660294,600.0,0.000108,2]
[406518095,1771900660810,600.0,0.000108,2]
[406518096,1771900661476,600.0,0.000108,2]
[406518097,1771900661749,396.64672536,0.000108,2]
[406518098,1771900661771,203.35327464,0.000108,2]
[406518099,1771900662506,600.0,0.000108,2]
[406518100,1771900663113,600.0,0.000108,2]
[406518101,1771900663570,600.0,0.000108,2]
[406518102,1771900664050,924.11336416,0.000108,2]
[406518103,1771900684698,157.0,0.00013,3]
[406518104,1771900745484,157.0,0.00013,3]
[406518105,1771900805556,157.0,0.00013,3]
[406518106,1771900864564,158.0,0.00013,3]
[406518107,1771900926541,158.0,0.00013,3]
[406518108,1771900937506,500.0,0.000108,2]
[406518109,1771900937660,500.0,0.000108,2]
[406518110,1771900938126,500.0,0.000108,2]
[406518111,1771900938435,500.0,0.000108,2]
[406518112,1771900938464,500.0,0.000108,2]
[406518113,1771900938589,500.0,0.000108,2]
[406518114,1771900938907,500.0,0.000108,2]
[406518115,1771900938956,500.0,0.000108,2]
[406518116,1771900939362,500.0,0.000108,2]
[406518117,1771900939830,500.0,0.000108,2]
[406518118,1771900940323,961.89182783,0.000108,2]
[406518119,1771900943371,500.0,0.000108,2]
[406518120,1771900943878,500.0,0.000108,2]
[406518121,1771900944368,110.65153337,0.000108,2]
[406518122,1771900944389,389.34846663,0.000108,2]
[406518123,1771900944844,500.0,0.000108,2]
[406518124,1771900945216,500.0,0.000108,2]
[406518125,1771900945532,500.0,0.000108,2]
[406518126,1771900945709,500.0,0.000108,2]
[406518127,1771900946184,500.0,0.000108,2]
[406518128,1771900946639,500.0,0.000108,2]
[406518129,1771900947118,517.22141529,0.000108,2]
[406518130,1771900984883,158.0,0.00013,3]
[406518131,1771901047593,158.0,0.00013,3]
[406518136,1771901106193,158.0,0.00013,3]
[406518141,1771901167172,158.0,0.00013,3]
[406518142,1771901232044,4300.0,0.000125,4]
[406518143,1771901234344,8700.0,0.000126,4]
[406518144,1771901236248,13100.0,0.000127,4]
[406518145,1771901238488,17400.0,0.000128,4]
[406518146,1771901240444,21800.0,0.000129,4]
[406518147,1771901241193,500.0,0.000108,2]
[406518148,1771901241377,817.52639302,0.000108,2]
[406518149,1771901245016,3392.92,0.00011233,2]
[406518150,1771901248146,500.0,0.000108,2]
[406518151,1771901253710,500.0,0.000108,2]
[406518152,1771901254209,500.0,0.000108,2]
[406518153,1771901254277,500.0,0.000108,2]
[406518154,1771901254728,653.71723476,0.000108,2]
[406518155,1771901254766,500.0,0.000108,2]
[406518156,1771901255260,500.0,0.000108,2]
[406518157,1771901256709,500.0,0.000108,2]
[406518158,1771901296174,1277.49806988,0.00013,3]
[406518159,1771901341597,5846.29276524,0.00011716,2]
[406518160,1771901341618,406.84154242,0.00011716,2]
[406518192,1771901431321,-209.06,0.000118,2]
[406518193,1771901431330,-41.78677385,0.00011808,2]
[406518194,1771901431374,-255.92929518,0.00011808,2]
[406518195,1771901431383,-304.12596972,0.00011816,2]
[406518196,1771901431393,-300.0,0.00011816,2]
[406518197,1771901431402,-300.0,0.00011832,2]
[406518198,1771901431411,-322.8462657,0.00011832,2]
[406518199,1771901431423,-877.1537343,0.00011832,2]
[406518200,1771901431432,-138.0091445,0.00011832,2]
[406518201,1771901431444,-161.9908555,0.00011832,2]
[406518202,1771901431453,-1200.0,0.00011832,2]
[406518203,1771901431463,-214.0,0.00011832,2]
[406518204,1771901431471,-368.09545856,0.00011833,2]
[406518205,1771901431483,-666.96670514,0.00011833,2]